[Event "Early-Titled-Tuesday-Blitz-April-16-2024"]
[Site "Chess.com"]
[Date "2024.04.16"]
[Round "1"]
[White "VinzentSpitzl"]
[Black "bipe137"]
[Result "1-0"]
[WhiteElo "2444"]
[BlackElo "2730"]
[TimeControl "180+1"]
[EndTime "8:07:51 PDT"]
[Termination "VinzentSpitzl won on time"]

1. d4 {[%clk 0:03:00.9]} 1... d5 {[%clk 0:02:58.6]} 2. Nf3 {[%clk 0:03:00.1]}
2... Nf6 {[%clk 0:02:57.3]} 3. c4 {[%clk 0:02:57.3]} 3... e6 {[%clk 0:02:57.1]}
4. Nc3 {[%clk 0:02:57.2]} 4... a6 {[%clk 0:02:56.9]} 5. cxd5 {[%clk 0:02:53.8]}
5... exd5 {[%clk 0:02:57.8]} 6. Bg5 {[%clk 0:02:53.6]} 6... Be6 {[%clk
0:02:54.5]} 7. e3 {[%clk 0:02:52.9]} 7... Nbd7 {[%clk 0:02:51.5]} 8. Bd3 {[%clk
0:02:52.7]} 8... Bd6 {[%clk 0:02:47.9]} 9. O-O {[%clk 0:02:52.5]} 9... c6 {[%clk
0:02:48.3]} 10. Qc2 {[%clk 0:02:46.5]} 10... Qb8 {[%clk 0:02:44.8]} 11. Rfe1
{[%clk 0:02:45.1]} 11... O-O {[%clk 0:02:37.6]} 12. h3 {[%clk 0:02:40.6]} 12...
h6 {[%clk 0:02:33.7]} 13. Bxf6 {[%clk 0:02:37.6]} 13... Nxf6 {[%clk 0:02:34.6]}
14. Rad1 {[%clk 0:02:29.7]} 14... Re8 {[%clk 0:02:30.8]} 15. a3 {[%clk
0:02:28.8]} 15... Bxh3 {[%clk 0:02:15.8]} 16. gxh3 {[%clk 0:02:24.1]} 16... g6
{[%clk 0:02:04.6]} 17. Bxg6 {[%clk 0:02:09.7]} 17... Kh8 {[%clk 0:01:52.3]} 18.
Bxf7 {[%clk 0:02:01.1]} 18... Rf8 {[%clk 0:01:37.6]} 19. Qg6 {[%clk 0:01:58.4]}
19... Ng8 {[%clk 0:01:38.2]} 20. Nh4 {[%clk 0:01:34.9]} 20... Qc7 {[%clk
0:01:32.7]} 21. Be6 {[%clk 0:01:33.9]} 21... Rf6 {[%clk 0:01:24.1]} 22. Qg4
{[%clk 0:01:32.8]} 22... h5 {[%clk 0:01:21.4]} 23. Qxh5+ {[%clk 0:01:11.1]}
23... Rh6 {[%clk 0:01:20]} 24. Qg4 {[%clk 0:01:01.6]} 24... Re8 {[%clk 0:00:40]}
25. Ng6+ {[%clk 0:00:51.6]} 25... Kh7 {[%clk 0:00:38.7]} 26. Bf5 {[%clk
0:00:51.7]} 26... Nf6 {[%clk 0:00:31.6]} 27. Qg2 {[%clk 0:00:40.7]} 27... Rh5
{[%clk 0:00:18]} 28. Bb1 {[%clk 0:00:37]} 28... Kh6 {[%clk 0:00:18.1]} 29. Kf1
{[%clk 0:00:31.7]} 29... Rg5 {[%clk 0:00:12.2]} 30. Qf3 {[%clk 0:00:27.3]} 30...
Nh5 {[%clk 0:00:10.4]} 31. e4 {[%clk 0:00:21.6]} 31... Rxg6 {[%clk 0:00:08.6]}
32. e5 {[%clk 0:00:20.7]} 32... Ng3+ {[%clk 0:00:04.4]} 33. Kg2 {[%clk
0:00:11.2]} 33... Ne4+ {[%clk 0:00:04.7]} 34. Kh1 {[%clk 0:00:09.4]} 34... Be7
{[%clk 0:00:04.8]} 35. Nxe4 {[%clk 0:00:08.2]} 35... dxe4 {[%clk 0:00:05.2]} 36.
Bxe4 {[%clk 0:00:08.6]} 36... Rg5 {[%clk 0:00:05.6]} 37. Qf7 {[%clk 0:00:07.4]}
37... Rg7 {[%clk 0:00:03.4]} 38. Qf4+ {[%clk 0:00:06.5]} 38... Bg5 {[%clk
0:00:02.5]} 39. Qf5 {[%clk 0:00:06.7]} 39... Ree7 {[%clk 0:00:02.3]} 40. Rg1
{[%clk 0:00:06.7]} 40... Ref7 {[%clk 0:00:02.6]} 41. Qg4 {[%clk 0:00:06.9]}
41... Qe7 {[%clk 0:00:02.9]} 42. Rdf1 {[%clk 0:00:06.9]} 42... Rf4 {[%clk
0:00:03.2]} 43. Qe2 {[%clk 0:00:06.3]} 43... Qf7 {[%clk 0:00:03.4]} 44. Rg3
{[%clk 0:00:06.2]} 44... Qb3 {[%clk 0:00:02.5]} 45. Rxb3 {[%clk 0:00:05]} 45...
Rh4 {[%clk 0:00:02.2]} 46. Rg3 {[%clk 0:00:04.6]} 46... Be3 {[%clk 0:00:02.6]}
47. Rfg1 {[%clk 0:00:04.7]} 47... Bxf2 {[%clk 0:00:01.3]} 48. Qxf2 {[%clk
0:00:04.5]} 1-0

[Event "Early-Titled-Tuesday-Blitz-April-16-2024"]
[Site "Chess.com"]
[Date "2024.04.16"]
[Round "1"]
[White "Martial2008"]
[Black "LileKoridze"]
[Result "1-0"]
[WhiteElo "2662"]
[BlackElo "2368"]
[TimeControl "180+1"]
[EndTime "8:07:51 PDT"]
[Termination "Martial2008 won by checkmate"]

1. d4 {[%clk 0:02:59.8]} 1... Nf6 {[%clk 0:03:00]} 2. Nf3 {[%clk 0:02:58.3]}
2... e6 {[%clk 0:02:59.7]} 3. Bg5 {[%clk 0:02:55.3]} 3... b6 {[%clk 0:02:58.7]}
4. Nbd2 {[%clk 0:02:54.1]} 4... Bb7 {[%clk 0:02:59.2]} 5. e3 {[%clk 0:02:52.8]}
5... Be7 {[%clk 0:02:59.6]} 6. Bd3 {[%clk 0:02:52.6]} 6... O-O {[%clk
0:02:59.8]} 7. O-O {[%clk 0:02:51.9]} 7... h6 {[%clk 0:03:00]} 8. Bh4 {[%clk
0:02:51.6]} 8... d5 {[%clk 0:02:59.7]} 9. c3 {[%clk 0:02:35.9]} 9... c5 {[%clk
0:02:59.1]} 10. Ne5 {[%clk 0:02:32.9]} 10... Nbd7 {[%clk 0:02:58.9]} 11. Bxf6
{[%clk 0:02:14.6]} 11... Bxf6 {[%clk 0:02:57.2]} 12. f4 {[%clk 0:02:14.4]} 12...
Rc8 {[%clk 0:02:55]} 13. Qh5 {[%clk 0:02:14]} 13... Nxe5 {[%clk 0:02:54.3]} 14.
fxe5 {[%clk 0:02:11.5]} 14... Bg5 {[%clk 0:02:54.3]} 15. Rae1 {[%clk 0:02:09.7]}
15... cxd4 {[%clk 0:02:54]} 16. cxd4 {[%clk 0:01:58.7]} 16... Qe7 {[%clk
0:02:52.4]} 17. Nf3 {[%clk 0:01:57.2]} 17... g6 {[%clk 0:02:45.1]} 18. Qg4
{[%clk 0:01:48.3]} 18... Qd8 {[%clk 0:02:37.2]} 19. h4 {[%clk 0:01:47]} 19...
Be7 {[%clk 0:02:37.7]} 20. Bxg6 {[%clk 0:01:46.7]} 20... fxg6 {[%clk 0:02:38.2]}
21. Qxg6+ {[%clk 0:01:45.7]} 21... Kh8 {[%clk 0:02:38.4]} 22. Qxh6+ {[%clk
0:01:44.4]} 22... Kg8 {[%clk 0:02:39]} 23. Qxe6+ {[%clk 0:01:16.1]} 23... Kh8
{[%clk 0:02:38.7]} 24. Qh6+ {[%clk 0:01:16]} 24... Kg8 {[%clk 0:02:38.7]} 25.
Qg6+ {[%clk 0:01:14.2]} 25... Kh8 {[%clk 0:02:39.2]} 26. Ng5 {[%clk 0:01:11]}
26... Bxg5 {[%clk 0:02:39.5]} 27. hxg5 {[%clk 0:01:11.6]} 27... Qe7 {[%clk
0:02:39.4]} 28. Qh6+ {[%clk 0:01:03.3]} 28... Kg8 {[%clk 0:02:38.9]} 29. Rf4
{[%clk 0:00:42.6]} 29... Rc6 {[%clk 0:02:34.7]} 30. Rf6 {[%clk 0:00:40.2]} 30...
Rcxf6 {[%clk 0:02:29.1]} 31. gxf6 {[%clk 0:00:39.8]} 31... Qh7 {[%clk
0:02:29.4]} 32. Qg5+ {[%clk 0:00:39.7]} 32... Kf7 {[%clk 0:02:29.5]} 33. Rc1
{[%clk 0:00:20.9]} 33... Rc8 {[%clk 0:02:27.6]} 34. e6+ {[%clk 0:00:18.5]} 34...
Kxe6 {[%clk 0:02:27.5]} 35. Rxc8 {[%clk 0:00:14.5]} 35... Bxc8 {[%clk
0:02:27.4]} 36. Qg4+ {[%clk 0:00:14.1]} 36... Kxf6 {[%clk 0:02:27.8]} 37. Qxc8
{[%clk 0:00:14.3]} 37... Qb1+ {[%clk 0:02:26.8]} 38. Kh2 {[%clk 0:00:14.8]}
38... Qh7+ {[%clk 0:02:25.5]} 39. Kg3 {[%clk 0:00:14.2]} 39... Qg6+ {[%clk
0:02:20.3]} 40. Qg4 {[%clk 0:00:14.6]} 40... Qc2 {[%clk 0:02:20.5]} 41. Qf4+
{[%clk 0:00:14.9]} 41... Kg6 {[%clk 0:02:16.3]} 42. Qd6+ {[%clk 0:00:13.7]}
42... Kg7 {[%clk 0:02:14.9]} 43. Qxd5 {[%clk 0:00:13]} 43... Qxb2 {[%clk
0:02:15.4]} 44. Qd7+ {[%clk 0:00:13.2]} 44... Kg6 {[%clk 0:02:14.8]} 45. Qxa7
{[%clk 0:00:13.8]} 45... Qb1 {[%clk 0:02:09.9]} 46. Qa3 {[%clk 0:00:07.8]} 46...
Qe1+ {[%clk 0:02:09.6]} 47. Kh3 {[%clk 0:00:06.3]} 47... Qh1+ {[%clk 0:02:09.6]}
48. Kg3 {[%clk 0:00:06.1]} 48... Qe1+ {[%clk 0:02:10]} 49. Kf4 {[%clk
0:00:06.2]} 49... Qf2+ {[%clk 0:02:09]} 50. Ke5 {[%clk 0:00:06.8]} 50... Qg3+
{[%clk 0:02:07.9]} 51. Ke6 {[%clk 0:00:04.4]} 51... Qg4+ {[%clk 0:02:07.1]} 52.
Kd5 {[%clk 0:00:04]} 52... Qxg2+ {[%clk 0:02:06.7]} 53. Kc4 {[%clk 0:00:04.7]}
53... Qe2+ {[%clk 0:02:04.9]} 54. Kb4 {[%clk 0:00:03.5]} 54... Qe1+ {[%clk
0:02:01.9]} 55. Kb5 {[%clk 0:00:04.4]} 55... Qb1+ {[%clk 0:01:55.8]} 56. Qb3
{[%clk 0:00:04.9]} 56... Qf5+ {[%clk 0:01:56]} 57. Kxb6 {[%clk 0:00:05]} 57...
Qf6+ {[%clk 0:01:56.2]} 58. Kc5 {[%clk 0:00:05.4]} 58... Qe7+ {[%clk 0:01:56.2]}
59. Kc4 {[%clk 0:00:05.4]} 59... Qc7+ {[%clk 0:01:55.7]} 60. Kd3 {[%clk
0:00:06]} 60... Qh2 {[%clk 0:01:55.7]} 61. Qe6+ {[%clk 0:00:06.2]} 61... Kh7
{[%clk 0:01:55.4]} 62. Qe7+ {[%clk 0:00:06.1]} 62... Kg8 {[%clk 0:01:55.4]} 63.
Qe6+ {[%clk 0:00:05.9]} 63... Kh7 {[%clk 0:01:55.8]} 64. Qf7+ {[%clk 0:00:06.5]}
64... Kh8 {[%clk 0:01:56.3]} 65. Qf8+ {[%clk 0:00:06.5]} 65... Kh7 {[%clk
0:01:56.8]} 66. Qf5+ {[%clk 0:00:06.3]} 66... Kh8 {[%clk 0:01:57.1]} 67. Ke4
{[%clk 0:00:06.9]} 67... Qxa2 {[%clk 0:01:55.9]} 68. Qe5+ {[%clk 0:00:05.2]}
68... Kh7 {[%clk 0:01:55.4]} 69. Qe7+ {[%clk 0:00:05.6]} 69... Kh8 {[%clk
0:01:55.7]} 70. Qe5+ {[%clk 0:00:03.9]} 70... Kh7 {[%clk 0:01:56.1]} 71. Qh5+
{[%clk 0:00:04.5]} 71... Kg7 {[%clk 0:01:55]} 72. Qg5+ {[%clk 0:00:05.1]} 72...
Kh7 {[%clk 0:01:55.4]} 73. Qf5+ {[%clk 0:00:03.4]} 73... Kh8 {[%clk 0:01:54.7]}
74. Qf4 {[%clk 0:00:03.9]} 74... Kh7 {[%clk 0:01:55]} 75. Kf5 {[%clk 0:00:04.2]}
75... Qd5+ {[%clk 0:01:46]} 76. Qe5 {[%clk 0:00:04.6]} 76... Qf3+ {[%clk
0:01:45.8]} 77. Ke6 {[%clk 0:00:05]} 77... Qc6+ {[%clk 0:01:44.2]} 78. Ke7
{[%clk 0:00:05.6]} 78... Qb7+ {[%clk 0:01:43.9]} 79. Kf6 {[%clk 0:00:06.3]}
79... Qg7+ {[%clk 0:01:42.1]} 80. Ke6 {[%clk 0:00:04.6]} 80... Qg8+ {[%clk
0:01:41.3]} 81. Kd6 {[%clk 0:00:04.6]} 81... Qb8+ {[%clk 0:01:41]} 82. Kc6
{[%clk 0:00:04.3]} 82... Qa8+ {[%clk 0:01:41.1]} 83. Kb6 {[%clk 0:00:04.9]}
83... Qa2 {[%clk 0:01:38.5]} 84. d5 {[%clk 0:00:05.2]} 84... Qb3+ {[%clk
0:01:38.5]} 85. Kc7 {[%clk 0:00:05.7]} 85... Qc4+ {[%clk 0:01:38.8]} 86. Kd6
{[%clk 0:00:06.2]} 86... Qb4+ {[%clk 0:01:38.6]} 87. Ke6 {[%clk 0:00:06.8]}
87... Qb6+ {[%clk 0:01:36.8]} 88. d6 {[%clk 0:00:07.3]} 88... Qb3+ {[%clk
0:01:36.9]} 89. Kf6 {[%clk 0:00:07.9]} 89... Qg8 {[%clk 0:01:35.7]} 90. Qh5#
{[%clk 0:00:07.9]} 1-0

[Event "Early-Titled-Tuesday-Blitz-April-16-2024"]
[Site "Chess.com"]
[Date "2024.04.16"]
[Round "1"]
[White "cthulhuuu"]
[Black "lamomiajunior"]
[Result "0-1"]
[WhiteElo "2426"]
[BlackElo "2741"]
[TimeControl "180+1"]
[EndTime "8:07:55 PDT"]
[Termination "lamomiajunior won on time"]

1. e4 {[%clk 0:02:59.9]} 1... c5 {[%clk 0:02:59.7]} 2. Nf3 {[%clk 0:03:00.3]}
2... d6 {[%clk 0:03:00.3]} 3. g3 {[%clk 0:03:00.4]} 3... Nf6 {[%clk 0:03:00.2]}
4. d3 {[%clk 0:03:00.8]} 4... Nc6 {[%clk 0:02:54.6]} 5. Bg2 {[%clk 0:03:00.9]}
5... g6 {[%clk 0:02:52.7]} 6. O-O {[%clk 0:03:00.6]} 6... Bg7 {[%clk 0:02:53.6]}
7. Re1 {[%clk 0:03:00.6]} 7... O-O {[%clk 0:02:54.5]} 8. e5 {[%clk 0:02:59.1]}
8... dxe5 {[%clk 0:02:52.6]} 9. Nxe5 {[%clk 0:03:00]} 9... Nd4 {[%clk
0:02:29.3]} 10. c3 {[%clk 0:02:56.5]} 10... Nf5 {[%clk 0:02:28.5]} 11. Na3
{[%clk 0:02:53.6]} 11... Nd6 {[%clk 0:02:24.6]} 12. Be3 {[%clk 0:02:51.7]} 12...
Qc7 {[%clk 0:02:23.4]} 13. Nac4 {[%clk 0:02:37.3]} 13... Be6 {[%clk 0:02:20.4]}
14. h3 {[%clk 0:01:58.6]} 14... Nd5 {[%clk 0:02:13]} 15. Bd2 {[%clk 0:01:49.2]}
15... Rad8 {[%clk 0:02:09.2]} 16. Qc1 {[%clk 0:01:47]} 16... Nxc4 {[%clk
0:02:08.2]} 17. Nxc4 {[%clk 0:01:44.2]} 17... b5 {[%clk 0:02:07.8]} 18. Ne3
{[%clk 0:01:32.4]} 18... Nf6 {[%clk 0:01:56.3]} 19. d4 {[%clk 0:01:18.7]} 19...
cxd4 {[%clk 0:01:53.3]} 20. cxd4 {[%clk 0:01:19.6]} 20... Qxc1 {[%clk
0:01:50.3]} 21. Raxc1 {[%clk 0:01:18.7]} 21... Rxd4 {[%clk 0:01:50.1]} 22. Bc3
{[%clk 0:01:11.8]} 22... Rdd8 {[%clk 0:01:50.5]} 23. Bb4 {[%clk 0:00:59.8]}
23... Rfe8 {[%clk 0:01:37.4]} 24. Rc7 {[%clk 0:00:46]} 24... Bxa2 {[%clk
0:01:33.8]} 25. Rxa7 {[%clk 0:00:37.4]} 25... Be6 {[%clk 0:01:25.6]} 26. Bxe7
{[%clk 0:00:36.1]} 26... Rd7 {[%clk 0:01:25.5]} 27. Bxf6 {[%clk 0:00:10.6]}
27... Rxa7 {[%clk 0:01:23.2]} 28. Bxg7 {[%clk 0:00:10.4]} 28... Kxg7 {[%clk
0:01:24.1]} 29. Bc6 {[%clk 0:00:10.8]} 29... Rb8 {[%clk 0:01:22.5]} 30. b4
{[%clk 0:00:05]} 30... Ra4 {[%clk 0:01:21.2]} 31. Rb1 {[%clk 0:00:04.8]} 31...
Ra3 {[%clk 0:01:17.6]} 32. Nd5 {[%clk 0:00:04.6]} 32... Rc8 {[%clk 0:01:15]} 33.
Bb7 {[%clk 0:00:04.8]} 33... Rd8 {[%clk 0:01:11.1]} 34. Nc7 {[%clk 0:00:02.7]}
34... Bxh3 {[%clk 0:01:10.7]} 35. Nxb5 {[%clk 0:00:02.6]} 35... Rad3 {[%clk
0:01:08]} 36. Nc7 {[%clk 0:00:02.1]} 36... R3d7 {[%clk 0:01:06.1]} 37. Rc1
{[%clk 0:00:02.8]} 37... Rb8 {[%clk 0:01:03.5]} 38. Bg2 {[%clk 0:00:02.5]} 38...
Bxg2 {[%clk 0:01:02.7]} 39. Kxg2 {[%clk 0:00:03.1]} 39... Rxb4 {[%clk
0:01:03.2]} 40. Na6 {[%clk 0:00:03.6]} 40... Rb6 {[%clk 0:01:01.5]} 41. Nc5
{[%clk 0:00:03.8]} 41... Re7 {[%clk 0:01:01.3]} 42. Nd3 {[%clk 0:00:03.5]} 42...
Rd6 {[%clk 0:01:00.8]} 43. Nf4 {[%clk 0:00:03.8]} 43... h5 {[%clk 0:01:01.2]}
44. Rc5 {[%clk 0:00:03.6]} 44... Rd2 {[%clk 0:01:00]} 45. Rc3 {[%clk 0:00:03.8]}
45... Rb7 {[%clk 0:00:58.3]} 46. Rf3 {[%clk 0:00:04]} 46... Rbb2 {[%clk
0:00:58.3]} 47. Nh3 {[%clk 0:00:03.8]} 47... f6 {[%clk 0:00:53.8]} 48. Nf4
{[%clk 0:00:04]} 48... Rd6 {[%clk 0:00:51.1]} 49. Nh3 {[%clk 0:00:02.7]} 49...
g5 {[%clk 0:00:51.4]} 50. Ng1 {[%clk 0:00:02.7]} 50... Rd1 {[%clk 0:00:47.6]}
51. Re3 {[%clk 0:00:02.8]} 51... Rdd2 {[%clk 0:00:46.7]} 52. Rf3 {[%clk
0:00:03.3]} 52... g4 {[%clk 0:00:46.1]} 53. Rf4 {[%clk 0:00:03.5]} 53... Rd1
{[%clk 0:00:45]} 54. Re4 {[%clk 0:00:03.2]} 54... f5 {[%clk 0:00:39.1]} 55. Re5
{[%clk 0:00:03]} 55... Kf6 {[%clk 0:00:38.2]} 56. Re3 {[%clk 0:00:03.3]} 56...
Rdd2 {[%clk 0:00:38.1]} 57. Ne2 {[%clk 0:00:01.2]} 57... Rxe2 {[%clk 0:00:36.7]}
0-1

[Event "Early-Titled-Tuesday-Blitz-April-16-2024"]
[Site "Chess.com"]
[Date "2024.04.16"]
[Round "1"]
[White "AradNazari"]
[Black "N_I_Chess"]
[Result "1-0"]
[WhiteElo "2695"]
[BlackElo "2397"]
[TimeControl "180+1"]
[EndTime "8:07:55 PDT"]
[Termination "AradNazari won on time"]

1. e4 {[%clk 0:03:00.9]} 1... Nf6 {[%clk 0:03:00.1]} 2. Nc3 {[%clk 0:02:55.2]}
2... d5 {[%clk 0:02:58]} 3. exd5 {[%clk 0:02:53.9]} 3... Nxd5 {[%clk 0:02:57.4]}
4. Bc4 {[%clk 0:02:53.9]} 4... Nb6 {[%clk 0:02:56.5]} 5. Bb3 {[%clk 0:02:53.1]}
5... Nc6 {[%clk 0:02:49.3]} 6. Nf3 {[%clk 0:02:51.7]} 6... Bf5 {[%clk
0:02:48.4]} 7. O-O {[%clk 0:02:50]} 7... e6 {[%clk 0:02:47.2]} 8. d3 {[%clk
0:02:45.8]} 8... Be7 {[%clk 0:02:46.6]} 9. h3 {[%clk 0:02:45.3]} 9... O-O {[%clk
0:02:45.3]} 10. Re1 {[%clk 0:02:45.2]} 10... h6 {[%clk 0:02:36.3]} 11. Ne4
{[%clk 0:02:41.2]} 11... Nd5 {[%clk 0:02:20.1]} 12. c3 {[%clk 0:02:39.5]} 12...
Qd7 {[%clk 0:02:13.3]} 13. Ba4 {[%clk 0:02:29.7]} 13... Bd6 {[%clk 0:02:09.8]}
14. Nd4 {[%clk 0:02:25.8]} 14... Nde7 {[%clk 0:02:03.9]} 15. Bxc6 {[%clk
0:02:10.8]} 15... Nxc6 {[%clk 0:01:47.1]} 16. Nxf5 {[%clk 0:02:07.8]} 16... exf5
{[%clk 0:01:48]} 17. Nxd6 {[%clk 0:02:08.3]} 17... Qxd6 {[%clk 0:01:47.2]} 18.
d4 {[%clk 0:02:08.8]} 18... Rfe8 {[%clk 0:01:26.9]} 19. Bd2 {[%clk 0:02:07.5]}
19... Ne7 {[%clk 0:01:18.5]} 20. Qf3 {[%clk 0:02:03.2]} 20... c6 {[%clk
0:01:15.7]} 21. Re5 {[%clk 0:01:55.5]} 21... f6 {[%clk 0:01:07.8]} 22. Re2
{[%clk 0:01:51.4]} 22... Qd5 {[%clk 0:00:47.4]} 23. Qxd5+ {[%clk 0:01:45.6]}
23... Nxd5 {[%clk 0:00:48.3]} 24. Rae1 {[%clk 0:01:43.7]} 24... Rxe2 {[%clk
0:00:48.5]} 25. Rxe2 {[%clk 0:01:44.6]} 25... Kf7 {[%clk 0:00:49.1]} 26. c4
{[%clk 0:01:43.7]} 26... Nc7 {[%clk 0:00:46.3]} 27. Bb4 {[%clk 0:01:39.6]} 27...
Re8 {[%clk 0:00:42.6]} 28. Rxe8 {[%clk 0:01:39.3]} 28... Kxe8 {[%clk 0:00:38.9]}
29. f3 {[%clk 0:01:30]} 29... Ne6 {[%clk 0:00:34.1]} 30. Bc3 {[%clk 0:01:26]}
30... Nf4 {[%clk 0:00:20.7]} 31. Kf2 {[%clk 0:01:23.3]} 31... h5 {[%clk
0:00:19.2]} 32. b3 {[%clk 0:01:21.2]} 32... Kd7 {[%clk 0:00:18.3]} 33. Bd2
{[%clk 0:01:21.3]} 33... Ne6 {[%clk 0:00:18.2]} 34. Ke3 {[%clk 0:01:21.2]} 34...
g6 {[%clk 0:00:18.3]} 35. d5 {[%clk 0:01:16.3]} 35... Nc7 {[%clk 0:00:15.3]} 36.
Kd4 {[%clk 0:01:14.5]} 36... cxd5 {[%clk 0:00:15.7]} 37. cxd5 {[%clk 0:01:14.9]}
37... Nb5+ {[%clk 0:00:15.4]} 38. Kc5 {[%clk 0:01:12.8]} 38... Nc7 {[%clk
0:00:16]} 39. a4 {[%clk 0:00:58.6]} 39... Ne8 {[%clk 0:00:15.2]} 40. Bf4 {[%clk
0:00:55.6]} 40... g5 {[%clk 0:00:12.5]} 41. Bb8 {[%clk 0:00:50.8]} 41... g4
{[%clk 0:00:06.4]} 42. Bxa7 {[%clk 0:00:43.6]} 42... gxh3 {[%clk 0:00:06.2]} 43.
gxh3 {[%clk 0:00:44]} 43... h4 {[%clk 0:00:05.6]} 44. Bb8 {[%clk 0:00:42.9]}
44... Ng7 {[%clk 0:00:05.4]} 45. Bh2 {[%clk 0:00:24.4]} 45... Nh5 {[%clk
0:00:05.3]} 46. Kb6 {[%clk 0:00:24.1]} 46... Ng3 {[%clk 0:00:04.7]} 47. Kxb7
{[%clk 0:00:22.5]} 47... Nf1 {[%clk 0:00:03.7]} 48. Bf4 {[%clk 0:00:17]} 1-0

[Event "Early-Titled-Tuesday-Blitz-April-16-2024"]
[Site "Chess.com"]
[Date "2024.04.16"]
[Round "1"]
[White "GMAneta"]
[Black "GM_dmitrij"]
[Result "1-0"]
[WhiteElo "2537"]
[BlackElo "2983"]
[TimeControl "180+1"]
[EndTime "8:07:57 PDT"]
[Termination "GMAneta won by resignation"]

1. d4 {[%clk 0:03:00]} 1... Nf6 {[%clk 0:02:57.5]} 2. Nf3 {[%clk 0:02:57]} 2...
d5 {[%clk 0:02:55.5]} 3. c4 {[%clk 0:02:56.7]} 3... e5 {[%clk 0:02:55.3]} 4.
Nxe5 {[%clk 0:02:54.1]} 4... dxc4 {[%clk 0:02:47.7]} 5. e3 {[%clk 0:02:49.9]}
5... b5 {[%clk 0:02:42.3]} 6. a4 {[%clk 0:02:49.2]} 6... c6 {[%clk 0:02:42.3]}
7. axb5 {[%clk 0:02:46.1]} 7... cxb5 {[%clk 0:02:43.2]} 8. b3 {[%clk 0:02:45.7]}
8... Bb7 {[%clk 0:02:11.8]} 9. bxc4 {[%clk 0:02:40.9]} 9... b4 {[%clk
0:01:58.1]} 10. Qa4+ {[%clk 0:02:40.3]} 10... Nbd7 {[%clk 0:01:55.6]} 11. c5
{[%clk 0:02:40]} 11... Bd5 {[%clk 0:01:18]} 12. c6 {[%clk 0:02:30.3]} 12... Nxe5
{[%clk 0:01:05.9]} 13. dxe5 {[%clk 0:02:29.6]} 13... Rc8 {[%clk 0:00:54.2]} 14.
c7+ {[%clk 0:02:25.2]} 14... Qd7 {[%clk 0:00:54.3]} 15. Bb5 {[%clk 0:02:24.6]}
15... Rxc7 {[%clk 0:00:53.6]} 16. Bxd7+ {[%clk 0:02:23.9]} 16... Nxd7 {[%clk
0:00:54.5]} 17. O-O {[%clk 0:02:21.9]} 17... Bc5 {[%clk 0:00:53.6]} 18. Bb2
{[%clk 0:02:17.6]} 18... O-O {[%clk 0:00:53.4]} 19. Nd2 {[%clk 0:02:17.2]} 19...
Rfc8 {[%clk 0:00:53.1]} 20. Bd4 {[%clk 0:02:14.5]} 20... Nb6 {[%clk 0:00:44.2]}
21. Qa5 {[%clk 0:02:06.3]} 21... b3 {[%clk 0:00:43.7]} 22. Rfb1 {[%clk
0:01:54.3]} 22... Bxd4 {[%clk 0:00:31.7]} 23. exd4 {[%clk 0:01:53.8]} 23... Rc2
{[%clk 0:00:29.1]} 24. Nxb3 {[%clk 0:01:37.6]} 24... Bxb3 {[%clk 0:00:28.8]} 25.
h3 {[%clk 0:01:29.9]} 25... Be6 {[%clk 0:00:24.9]} 26. Qxa7 {[%clk 0:01:28.9]}
26... Nd5 {[%clk 0:00:25.4]} 27. Rb8 {[%clk 0:01:28.5]} 27... h5 {[%clk
0:00:24.7]} 28. Rxc8+ {[%clk 0:01:27.1]} 28... Rxc8 {[%clk 0:00:25.6]} 29. Rb1
{[%clk 0:01:26.2]} 29... Kh7 {[%clk 0:00:25.5]} 30. Rb8 {[%clk 0:01:25.4]} 30...
Rc1+ {[%clk 0:00:23.8]} 31. Kh2 {[%clk 0:01:25.5]} 31... Rc2 {[%clk 0:00:24.7]}
32. Kg3 {[%clk 0:01:15]} 32... h4+ {[%clk 0:00:21.6]} 33. Kxh4 {[%clk
0:01:11.1]} 33... Rxf2 {[%clk 0:00:22.1]} 34. Kg3 {[%clk 0:01:11.3]} 34... Rc2
{[%clk 0:00:22.2]} 35. Rb3 {[%clk 0:01:00.9]} 35... Nc3 {[%clk 0:00:19.8]} 36.
Rb6 {[%clk 0:00:50.4]} 36... Bd5 {[%clk 0:00:18.7]} 37. Qe7 {[%clk 0:00:42.7]}
37... Rxg2+ {[%clk 0:00:16.5]} 38. Kf4 {[%clk 0:00:42.7]} 38... g5+ {[%clk
0:00:16.8]} 39. Ke3 {[%clk 0:00:40.8]} 39... Rg3+ {[%clk 0:00:15.4]} 40. Kd2
{[%clk 0:00:38.3]} 40... Ne4+ {[%clk 0:00:15.8]} 41. Kc2 {[%clk 0:00:38.3]}
41... Rg2+ {[%clk 0:00:15.8]} 42. Kc1 {[%clk 0:00:38.6]} 42... Nc3 {[%clk
0:00:10.9]} 43. Qf8 {[%clk 0:00:34.9]} 43... Na2+ {[%clk 0:00:09.8]} 44. Kd1
{[%clk 0:00:33.8]} 44... Nc3+ {[%clk 0:00:10.4]} 45. Ke1 {[%clk 0:00:33.9]}
45... Be6 {[%clk 0:00:03.5]} 46. Rxe6 {[%clk 0:00:31.6]} 46... fxe6 {[%clk
0:00:04.4]} 47. Qf7+ {[%clk 0:00:31.9]} 47... Kh6 {[%clk 0:00:04.5]} 48. Qxe6+
{[%clk 0:00:32]} 48... Kh5 {[%clk 0:00:04.2]} 49. Qf5 {[%clk 0:00:29.5]} 49...
Re2+ {[%clk 0:00:03.2]} 50. Kf1 {[%clk 0:00:29.4]} 50... Re3 {[%clk 0:00:04.1]}
51. e6 {[%clk 0:00:28.4]} 51... Kh6 {[%clk 0:00:02.1]} 52. e7 {[%clk 0:00:27.3]}
52... Kg7 {[%clk 0:00:01.6]} 53. Qf8+ {[%clk 0:00:26.8]} 53... Kg6 {[%clk
0:00:01.8]} 54. e8=Q+ {[%clk 0:00:27]} 54... Rxe8 {[%clk 0:00:02.7]} 55. Qxe8+
{[%clk 0:00:27.9]} 1-0